[Event "Titled Tuesday Blitz May 24 Late 2022"]
[White "Krstulovic, Alex"]
[Black "Mickiewicz, Piotr"]
[WhiteFideId "760056"]
[BlackFideId "1114891"]
[WhiteElo "2193"]
[BlackElo "2223"]
[Result "1-0"]
[Round "09"]
[TimeControl "180+1"]
[Date "2022.05.25"]
[WhiteClock "0:00:21"]
[BlackClock "0:00:02"]

1. e4 {[%clk 0:03:00]}  c5 {[%clk 0:02:58]} 2. Nf3 {[%clk 0:02:57]}  e6 {[%clk 0:02:58]} 3. d4 {[%clk 0:02:57]}  cxd4 {[%clk 0:02:59]} 4. Nxd4 {[%clk 0:02:58]}  Nf6 {[%clk 0:02:59]} 5. Nc3 {[%clk 0:02:57]}  d6 {[%clk 0:03:00]} 6. g4 {[%clk 0:02:57]}  e5 {[%clk 0:03:00]} 7. Nf5 {[%clk 0:02:53]}  h5 {[%clk 0:02:58]} 8. g5 {[%clk 0:02:52]}  Nxe4 {[%clk 0:02:56]} 9. Nxg7+ {[%clk 0:02:38]}  Bxg7 {[%clk 0:02:55]} 10. Nxe4 {[%clk 0:02:38]}  d5 {[%clk 0:02:49]} 11. Ng3 {[%clk 0:02:37]}  Bg4 {[%clk 0:02:26]} 12. Be2 {[%clk 0:02:34]}  Qd7 {[%clk 0:02:05]} 13. Nxh5 {[%clk 0:02:28]}  Bxh5 {[%clk 0:02:04]} 14. Bxh5 {[%clk 0:02:29]}  Nc6 {[%clk 0:02:03]} 15. c3 {[%clk 0:02:06]}  e4 {[%clk 0:01:59]} 16. Be3 {[%clk 0:02:04]}  Ne5 {[%clk 0:01:57]} 17. Be2 {[%clk 0:01:59]}  a6 {[%clk 0:01:33]} 18. Qb3 {[%clk 0:01:58]}  Qc6 {[%clk 0:01:09]} 19. O-O-O {[%clk 0:01:54]}  Nc4 {[%clk 0:00:56]} 20. Bxc4 {[%clk 0:01:53]}  dxc4 {[%clk 0:00:55]} 21. Qb4 {[%clk 0:01:50]}  Bf8 {[%clk 0:00:45]} 22. Qa5 {[%clk 0:01:46]}  b5 {[%clk 0:00:40]} 23. Bd4 {[%clk 0:01:42]}  Rh3 {[%clk 0:00:35]} 24. Be3 {[%clk 0:01:25]}  Bc5 {[%clk 0:00:27]} 25. Rhe1 {[%clk 0:01:21]}  Bxe3+ {[%clk 0:00:19]} 26. fxe3 {[%clk 0:01:19]}  Rxh2 {[%clk 0:00:18]} 27. Rd4 {[%clk 0:01:18]}  Kf8 {[%clk 0:00:18]} 28. Rf1 {[%clk 0:01:13]}  Re8 {[%clk 0:00:17]} 29. g6 {[%clk 0:01:03]}  Qxg6 {[%clk 0:00:16]} 30. Qc7 {[%clk 0:01:03]}  Rf2 {[%clk 0:00:10]} 31. Qc5+ {[%clk 0:00:54]}  Kg7 {[%clk 0:00:08]} 32. Rxf2 {[%clk 0:00:50]}  Qg1+ {[%clk 0:00:08]} 33. Rd1 {[%clk 0:00:50]}  Qxf2 {[%clk 0:00:08]} 34. Qg5+ {[%clk 0:00:50]}  Kf8 {[%clk 0:00:08]} 35. Rh1 {[%clk 0:00:49]}  f6 {[%clk 0:00:04]} 36. Rh8+ {[%clk 0:00:48]}  Ke7 {[%clk 0:00:03]} 37. Qc5+ {[%clk 0:00:46]}  Kd7 {[%clk 0:00:02]} 38. Qd5+ {[%clk 0:00:43]}  Kc7 {[%clk 0:00:02]} 39. Rxe8 {[%clk 0:00:24]}  Qe1+ {[%clk 0:00:01]} 40. Qd1 {[%clk 0:00:23]}  Qxe3+ {[%clk 0:00:02]} 41. Qd2 {[%clk 0:00:23]}  Qg1+ {[%clk 0:00:02]} 42. Kc2 {[%clk 0:00:23]}  f5 {[%clk 0:00:03]} 43. Qd8+ {[%clk 0:00:21]}  Kc6 {[%clk 0:00:03]} 44. Re6+ {[%clk 0:00:21]}  Kb7 {[%clk 0:00:02]} 45. Qd7+ {[%clk 0:00:20]}  Kb8 {[%clk 0:00:02]} 46. Re8# {[%clk 0:00:21]} 1-0


[Site "https://www.chess.com"]

[Event "Titled Tuesday Blitz May 24 Late 2022"]
[White "Kujawski, Adam"]
[Black "Medeiros Jr, Francisco De Assis"]
[WhiteFideId "1100920"]
[BlackFideId "2114267"]
[WhiteElo "1982"]
[BlackElo "2003"]
[Result "1-0"]
[Round "09"]
[TimeControl "180+1"]
[Date "2022.05.25"]
[WhiteClock "0:02:04"]
[BlackClock "0:01:31"]

1. e4 {[%clk 0:03:00]}  c6 {[%clk 0:02:57]} 2. d4 {[%clk 0:03:00]}  d5 {[%clk 0:02:57]} 3. Nc3 {[%clk 0:03:00]}  dxe4 {[%clk 0:02:56]} 4. Nxe4 {[%clk 0:03:00]}  Nf6 {[%clk 0:02:57]} 5. Nxf6+ {[%clk 0:03:00]}  exf6 {[%clk 0:02:57]} 6. Bc4 {[%clk 0:03:00]}  Bd6 {[%clk 0:02:55]} 7. Qe2+ {[%clk 0:03:00]}  Qe7 {[%clk 0:02:53]} 8. Qxe7+ {[%clk 0:03:00]}  Bxe7 {[%clk 0:02:50]} 9. Be3 {[%clk 0:02:58]}  Be6 {[%clk 0:02:45]} 10. Bxe6 {[%clk 0:02:57]}  fxe6 {[%clk 0:02:46]} 11. Ne2 {[%clk 0:02:57]}  Nd7 {[%clk 0:02:42]} 12. O-O-O {[%clk 0:02:57]}  Kf7 {[%clk 0:02:41]} 13. g4 {[%clk 0:02:57]}  h5 {[%clk 0:02:37]} 14. h3 {[%clk 0:02:53]}  hxg4 {[%clk 0:02:35]} 15. hxg4 {[%clk 0:02:52]}  Nb6 {[%clk 0:02:33]} 16. Nf4 {[%clk 0:02:43]}  Nd5 {[%clk 0:02:32]} 17. Nxd5 {[%clk 0:02:34]}  exd5 {[%clk 0:02:26]} 18. Bf4 {[%clk 0:02:34]}  Rae8 {[%clk 0:02:12]} 19. Kd2 {[%clk 0:02:32]}  Bb4+ {[%clk 0:02:11]} 20. c3 {[%clk 0:02:31]}  Ba5 {[%clk 0:02:12]} 21. Kd3 {[%clk 0:02:28]}  Rxh1 {[%clk 0:01:55]} 22. Rxh1 {[%clk 0:02:26]}  Re7 {[%clk 0:01:56]} 23. f3 {[%clk 0:02:24]}  Bc7 {[%clk 0:01:55]} 24. Bxc7 {[%clk 0:02:23]}  Rxc7 {[%clk 0:01:56]} 25. b3 {[%clk 0:02:20]}  Re7 {[%clk 0:01:53]} 26. c4 {[%clk 0:02:19]}  Rd7 {[%clk 0:01:51]} 27. Rh8 {[%clk 0:02:10]}  c5 {[%clk 0:01:38]} 28. dxc5 {[%clk 0:02:08]}  dxc4+ {[%clk 0:01:36]} 29. Kxc4 {[%clk 0:02:08]}  Rd2 {[%clk 0:01:35]} 30. Rb8 {[%clk 0:02:05]}  Rc2+ {[%clk 0:01:31]} 31. Kb5 {[%clk 0:02:04]} 1-0


[Site "https://www.chess.com"]

[Event "Titled Tuesday Blitz May 24 Late 2022"]
[White "Lopez Del Alamo, Antonio"]
[Black "Meunier-Pion, Jean"]
[WhiteFideId "2227339"]
[BlackFideId "20685327"]
[WhiteElo "2089"]
[BlackElo "2124"]
[Result "0-1"]
[Round "09"]
[TimeControl "180+1"]
[Date "2022.05.25"]
[WhiteClock "0:00:13"]
[BlackClock "0:02:37"]

1. e4 {[%clk 0:02:57]}  c5 {[%clk 0:02:59]} 2. Nf3 {[%clk 0:02:50]}  d6 {[%clk 0:02:59]} 3. d4 {[%clk 0:02:42]}  cxd4 {[%clk 0:03:00]} 4. Nxd4 {[%clk 0:02:41]}  Nf6 {[%clk 0:03:00]} 5. Nc3 {[%clk 0:02:09]}  a6 {[%clk 0:03:00]} 6. Be2 {[%clk 0:01:54]}  e5 {[%clk 0:03:00]} 7. Nb3 {[%clk 0:01:42]}  Be7 {[%clk 0:02:58]} 8. Be3 {[%clk 0:01:20]}  Be6 {[%clk 0:02:57]} 9. Nd5 {[%clk 0:01:18]}  Bxd5 {[%clk 0:02:54]} 10. exd5 {[%clk 0:01:12]}  Nbd7 {[%clk 0:02:55]} 11. c4 {[%clk 0:00:53]}  O-O {[%clk 0:02:54]} 12. Qd2 {[%clk 0:00:44]}  b6 {[%clk 0:02:48]} 13. f3 {[%clk 0:00:43]}  Nc5 {[%clk 0:02:41]} 14. O-O {[%clk 0:00:31]}  Nfd7 {[%clk 0:02:37]} 15. Nc1 {[%clk 0:00:14]}  Bf6 {[%clk 0:02:37]} 16. Rb1 {[%clk 0:00:13]}  a5 {[%clk 0:02:37]} 0-1


[Site "https://www.chess.com"]

[Event "Titled Tuesday Blitz May 24 Late 2022"]
[White "Malka, Samuel"]
[Black "Olafsson, Helgi"]
[WhiteFideId "20643675"]
[BlackFideId "2300010"]
[WhiteElo "2488"]
[BlackElo "2463"]
[Result "0-1"]
[Round "09"]
[TimeControl "180+1"]
[Date "2022.05.24"]
[WhiteClock "0:00:04"]
[BlackClock "0:00:41"]

1. d4 {[%clk 0:03:00]}  Nf6 {[%clk 0:02:59]} 2. c4 {[%clk 0:03:00]}  e6 {[%clk 0:02:59]} 3. g3 {[%clk 0:03:00]}  d5 {[%clk 0:02:57]} 4. Nf3 {[%clk 0:02:57]}  dxc4 {[%clk 0:02:56]} 5. Bg2 {[%clk 0:02:57]}  Nc6 {[%clk 0:02:56]} 6. e3 {[%clk 0:02:12]}  Rb8 {[%clk 0:02:51]} 7. Nfd2 {[%clk 0:02:11]}  e5 {[%clk 0:02:43]} 8. Bxc6+ {[%clk 0:02:07]}  bxc6 {[%clk 0:02:42]} 9. dxe5 {[%clk 0:02:07]}  Ng4 {[%clk 0:02:41]} 10. O-O {[%clk 0:01:29]}  Be6 {[%clk 0:02:26]} 11. Nf3 {[%clk 0:01:12]}  h5 {[%clk 0:02:01]} 12. h4 {[%clk 0:01:08]}  Bb4 {[%clk 0:01:57]} 13. Nd4 {[%clk 0:01:04]}  Qd5 {[%clk 0:01:47]} 14. Nc3 {[%clk 0:00:50]}  Bxc3 {[%clk 0:01:45]} 15. bxc3 {[%clk 0:00:51]}  Nxe5 {[%clk 0:01:43]} 16. e4 {[%clk 0:00:35]}  Qxe4 {[%clk 0:01:34]} 17. Re1 {[%clk 0:00:36]}  Qd5 {[%clk 0:01:18]} 18. Bf4 {[%clk 0:00:36]}  Nd3 {[%clk 0:01:16]} 19. Bxc7 {[%clk 0:00:32]}  Rb7 {[%clk 0:01:09]} 20. Ba5 {[%clk 0:00:24]}  Nxe1 {[%clk 0:00:58]} 21. Qxe1 {[%clk 0:00:25]}  Qxa5 {[%clk 0:00:46]} 22. Nxe6 {[%clk 0:00:24]}  Re7 {[%clk 0:00:45]} 23. Nxg7+ {[%clk 0:00:12]}  Kf8 {[%clk 0:00:44]} 24. Qd2 {[%clk 0:00:05]}  Kxg7 {[%clk 0:00:43]} 25. Rb1 {[%clk 0:00:05]}  Rhe8 {[%clk 0:00:41]} 26. Kg2 {[%clk 0:00:04]}  Qd5+ {[%clk 0:00:41]} 0-1


[Site "https://www.chess.com"]

[Event "Titled Tuesday Blitz May 24 Late 2022"]
[White "Melikhov, Evgeny V."]
[Black "Carrasco Miranda, Andres"]
[WhiteFideId "4122046"]
[BlackFideId "3405990"]
[WhiteElo "1931"]
[BlackElo "2177"]
[Result "0-1"]
[Round "09"]
[TimeControl "180+1"]
[Date "2022.05.25"]
[WhiteClock "0:01:11"]
[BlackClock "0:00:59"]

1. d4 {[%clk 0:03:00]}  Nf6 {[%clk 0:02:48]} 2. c4 {[%clk 0:03:00]}  g6 {[%clk 0:02:48]} 3. Nc3 {[%clk 0:03:00]}  d5 {[%clk 0:02:48]} 4. cxd5 {[%clk 0:03:01]}  Nxd5 {[%clk 0:02:49]} 5. e4 {[%clk 0:03:01]}  Nxc3 {[%clk 0:02:49]} 6. bxc3 {[%clk 0:03:02]}  Bg7 {[%clk 0:02:49]} 7. Bc4 {[%clk 0:03:03]}  c5 {[%clk 0:02:49]} 8. Ne2 {[%clk 0:03:03]}  Nc6 {[%clk 0:02:50]} 9. Be3 {[%clk 0:03:03]}  O-O {[%clk 0:02:49]} 10. h4 {[%clk 0:03:03]}  cxd4 {[%clk 0:02:48]} 11. cxd4 {[%clk 0:03:03]}  Qa5+ {[%clk 0:02:48]} 12. Kf1 {[%clk 0:03:03]}  Bg4 {[%clk 0:02:44]} 13. f3 {[%clk 0:02:48]}  Bd7 {[%clk 0:02:44]} 14. h5 {[%clk 0:02:44]}  Rac8 {[%clk 0:02:34]} 15. h6 {[%clk 0:02:35]}  Bf6 {[%clk 0:02:26]} 16. Rc1 {[%clk 0:02:34]}  b5 {[%clk 0:02:25]} 17. Bb3 {[%clk 0:02:31]}  Qa3 {[%clk 0:02:25]} 18. e5 {[%clk 0:02:29]}  Bh8 {[%clk 0:02:19]} 19. f4 {[%clk 0:02:12]}  a5 {[%clk 0:02:09]} 20. Rc5 {[%clk 0:01:58]}  Bg4 {[%clk 0:01:16]} 21. Qc1 {[%clk 0:01:45]}  Qxc1+ {[%clk 0:01:09]} 22. Nxc1 {[%clk 0:01:42]}  a4 {[%clk 0:01:08]} 23. Bd5 {[%clk 0:01:40]}  Nb4 {[%clk 0:01:08]} 24. a3 {[%clk 0:01:30]}  Rxc5 {[%clk 0:01:05]} 25. dxc5 {[%clk 0:01:26]}  Nxd5 {[%clk 0:01:06]} 26. Bd4 {[%clk 0:01:26]}  f6 {[%clk 0:00:59]} 27. Rh4 {[%clk 0:01:17]}  fxe5 {[%clk 0:00:59]} 28. Rxg4 {[%clk 0:01:13]}  exd4 {[%clk 0:00:59]} 29. Nd3 {[%clk 0:01:11]}  Ne3+ {[%clk 0:00:59]} 0-1


[Site "https://www.chess.com"]

[Event "Titled Tuesday Blitz May 24 Late 2022"]
[White "Moral Garcia, Serafin"]
[Black "Yanayt, Eugene"]
[WhiteFideId "2201925"]
[BlackFideId "2020165"]
[WhiteElo "2228"]
[BlackElo "2046"]
[Result "1-0"]
[Round "09"]
[TimeControl "180+1"]
[Date "2022.05.25"]
[WhiteClock "0:01:36"]
[BlackClock "0:00:30"]

1. e4 {[%clk 0:03:00]}  c5 {[%clk 0:02:58]} 2. Nf3 {[%clk 0:02:59]}  d6 {[%clk 0:02:58]} 3. d4 {[%clk 0:02:58]}  cxd4 {[%clk 0:02:58]} 4. Nxd4 {[%clk 0:02:59]}  Nf6 {[%clk 0:02:58]} 5. Nc3 {[%clk 0:03:00]}  g6 {[%clk 0:02:58]} 6. Be3 {[%clk 0:02:59]}  Bg7 {[%clk 0:02:58]} 7. f3 {[%clk 0:02:57]}  Nc6 {[%clk 0:02:57]} 8. Qd2 {[%clk 0:02:55]}  h5 {[%clk 0:02:54]} 9. O-O-O {[%clk 0:02:39]}  Bd7 {[%clk 0:02:47]} 10. Kb1 {[%clk 0:02:39]}  Rc8 {[%clk 0:02:41]} 11. g3 {[%clk 0:02:28]}  Ne5 {[%clk 0:02:37]} 12. h3 {[%clk 0:02:24]}  a6 {[%clk 0:02:15]} 13. Rg1 {[%clk 0:02:16]}  b5 {[%clk 0:02:12]} 14. g4 {[%clk 0:02:08]}  b4 {[%clk 0:02:09]} 15. Nd5 {[%clk 0:02:06]}  Nxd5 {[%clk 0:02:07]} 16. exd5 {[%clk 0:02:06]}  a5 {[%clk 0:02:07]} 17. f4 {[%clk 0:02:02]}  Nc4 {[%clk 0:01:53]} 18. Bxc4 {[%clk 0:02:03]}  Rxc4 {[%clk 0:01:52]} 19. f5 {[%clk 0:02:04]}  Kf8 {[%clk 0:01:20]} 20. fxg6 {[%clk 0:02:01]}  fxg6 {[%clk 0:01:19]} 21. Qd3 {[%clk 0:01:59]}  Qc8 {[%clk 0:01:01]} 22. Qxg6 {[%clk 0:01:56]}  hxg4 {[%clk 0:00:40]} 23. Rdf1+ {[%clk 0:01:50]}  Kg8 {[%clk 0:00:40]} 24. Qf7+ {[%clk 0:01:46]}  Kh7 {[%clk 0:00:40]} 25. hxg4 {[%clk 0:01:40]}  Bxg4 {[%clk 0:00:31]} 26. Rh1+ {[%clk 0:01:35]}  Bh3 {[%clk 0:00:30]} 27. Rf3 {[%clk 0:01:36]} 1-0


[Site "https://www.chess.com"]

[Event "Titled Tuesday Blitz May 24 Late 2022"]
[White "Nozdrachev, Leonid"]
[Black "Santos Ruiz, Miguel"]
[WhiteFideId "24113433"]
[BlackFideId "22291482"]
[WhiteElo "2255"]
[BlackElo "2486"]
[Result "0-1"]
[Round "09"]
[TimeControl "180+1"]
[Date "2022.05.24"]
[WhiteClock "0:00:08"]
[BlackClock "0:00:44"]

1. e4 {[%clk 0:02:59]}  c6 {[%clk 0:03:00]} 2. Qf3 {[%clk 0:02:56]}  d5 {[%clk 0:03:01]} 3. exd5 {[%clk 0:02:54]}  cxd5 {[%clk 0:03:01]} 4. Bb5+ {[%clk 0:02:53]}  Nc6 {[%clk 0:02:59]} 5. c4 {[%clk 0:02:52]}  e6 {[%clk 0:02:51]} 6. Nc3 {[%clk 0:02:50]}  Nf6 {[%clk 0:02:46]} 7. d4 {[%clk 0:02:49]}  Be7 {[%clk 0:02:41]} 8. Bg5 {[%clk 0:02:47]}  O-O {[%clk 0:02:40]} 9. Bxc6 {[%clk 0:02:28]}  bxc6 {[%clk 0:02:40]} 10. Nge2 {[%clk 0:02:21]}  Ba6 {[%clk 0:02:34]} 11. cxd5 {[%clk 0:02:14]}  cxd5 {[%clk 0:02:33]} 12. O-O {[%clk 0:02:11]}  Qa5 {[%clk 0:02:10]} 13. Rfc1 {[%clk 0:02:10]}  Rfc8 {[%clk 0:02:08]} 14. h3 {[%clk 0:02:08]}  h6 {[%clk 0:02:06]} 15. Bd2 {[%clk 0:02:06]}  Qb6 {[%clk 0:02:00]} 16. Na4 {[%clk 0:01:59]}  Qb8 {[%clk 0:01:43]} 17. Rxc8+ {[%clk 0:01:43]}  Qxc8 {[%clk 0:01:44]} 18. Rc1 {[%clk 0:01:42]}  Qb7 {[%clk 0:01:42]} 19. b3 {[%clk 0:01:37]}  Ne4 {[%clk 0:01:40]} 20. Ba5 {[%clk 0:01:31]}  Qb5 {[%clk 0:01:33]} 21. Rc7 {[%clk 0:01:11]}  Bf6 {[%clk 0:01:25]} 22. Qh5 {[%clk 0:00:38]}  Qxe2 {[%clk 0:01:07]} 23. Qxf7+ {[%clk 0:00:35]}  Kh8 {[%clk 0:01:06]} 24. Nc5 {[%clk 0:00:13]}  Qxf2+ {[%clk 0:01:05]} 25. Kh1 {[%clk 0:00:09]}  Bf1 {[%clk 0:00:44]} 26. Qg6 {[%clk 0:00:08]}  Ng3+ {[%clk 0:00:44]} 0-1


[Site "https://www.chess.com"]

[Event "Titled Tuesday Blitz May 24 Late 2022"]
[White "Oparin, Grigoriy"]
[Black "Rustemov, Alexander"]
[WhiteFideId "24125890"]
[BlackFideId "4119002"]
[WhiteElo "2665"]
[BlackElo "2843"]
[Result "1/2-1/2"]
[Round "09"]
[TimeControl "180+1"]
[Date "2022.05.24"]
[WhiteClock "0:01:16"]
[BlackClock "0:00:34"]

1. c4 {[%clk 0:03:00]}  c5 {[%clk 0:02:59]} 2. Nf3 {[%clk 0:03:01]}  g6 {[%clk 0:02:59]} 3. g3 {[%clk 0:02:58]}  Bg7 {[%clk 0:02:59]} 4. Nc3 {[%clk 0:02:59]}  Nc6 {[%clk 0:02:59]} 5. b3 {[%clk 0:02:58]}  Bxc3 {[%clk 0:02:58]} 6. dxc3 {[%clk 0:02:58]}  b6 {[%clk 0:02:57]} 7. Bg2 {[%clk 0:02:58]}  Bb7 {[%clk 0:02:57]} 8. O-O {[%clk 0:02:59]}  d6 {[%clk 0:02:58]} 9. e4 {[%clk 0:02:59]}  Qc7 {[%clk 0:02:56]} 10. Qe2 {[%clk 0:02:58]}  Nf6 {[%clk 0:02:55]} 11. Ne1 {[%clk 0:02:58]}  h5 {[%clk 0:02:52]} 12. h3 {[%clk 0:02:57]}  Nd7 {[%clk 0:02:40]} 13. f4 {[%clk 0:02:55]}  e6 {[%clk 0:02:38]} 14. Nd3 {[%clk 0:02:53]}  O-O-O {[%clk 0:02:36]} 15. b4 {[%clk 0:02:52]}  Rhe8 {[%clk 0:02:25]} 16. a4 {[%clk 0:02:52]}  a5 {[%clk 0:02:22]} 17. b5 {[%clk 0:02:43]}  Ne7 {[%clk 0:02:22]} 18. Bd2 {[%clk 0:02:36]}  f5 {[%clk 0:02:19]} 19. Rae1 {[%clk 0:02:33]}  Nf6 {[%clk 0:02:16]} 20. Nf2 {[%clk 0:02:26]}  d5 {[%clk 0:01:58]} 21. cxd5 {[%clk 0:02:23]}  exd5 {[%clk 0:01:53]} 22. e5 {[%clk 0:02:11]}  Ne4 {[%clk 0:01:53]} 23. Kh2 {[%clk 0:02:12]}  Kb8 {[%clk 0:01:41]} 24. Rd1 {[%clk 0:02:10]}  Rd7 {[%clk 0:01:37]} 25. c4 {[%clk 0:01:27]}  Nxf2 {[%clk 0:01:33]} 26. Rxf2 {[%clk 0:01:25]}  d4 {[%clk 0:01:32]} 27. Bxb7 {[%clk 0:01:13]}  Qxb7 {[%clk 0:01:32]} 28. Qf3 {[%clk 0:01:14]}  Qxf3 {[%clk 0:01:24]} 29. Rxf3 {[%clk 0:01:15]}  Ng8 {[%clk 0:01:20]} 30. Kg2 {[%clk 0:01:13]}  Nh6 {[%clk 0:01:20]} 31. Kf1 {[%clk 0:01:13]}  Kc8 {[%clk 0:01:12]} 32. Ke2 {[%clk 0:01:13]}  Kd8 {[%clk 0:01:13]} 33. Kd3 {[%clk 0:01:14]}  Ke7 {[%clk 0:01:13]} 34. Rg1 {[%clk 0:01:14]}  Ke6 {[%clk 0:01:11]} 35. Bc1 {[%clk 0:01:14]}  Rh7 {[%clk 0:01:08]} 36. Bd2 {[%clk 0:01:15]}  Reh8 {[%clk 0:01:06]} 37. Be1 {[%clk 0:01:15]}  Nf7 {[%clk 0:00:54]} 38. Bd2 {[%clk 0:01:15]}  Ke7 {[%clk 0:00:54]} 39. Be1 {[%clk 0:01:14]}  Nd8 {[%clk 0:00:54]} 40. Bd2 {[%clk 0:01:15]}  Ne6 {[%clk 0:00:55]} 41. h4 {[%clk 0:01:13]}  Rd8 {[%clk 0:00:50]} 42. Rh1 {[%clk 0:01:14]}  Rhh8 {[%clk 0:00:42]} 43. Rff1 {[%clk 0:01:14]}  Rd7 {[%clk 0:00:41]} 44. Re1 {[%clk 0:01:14]}  Ra8 {[%clk 0:00:40]} 45. Re2 {[%clk 0:01:15]}  Ng7 {[%clk 0:00:39]} 46. Rf1 {[%clk 0:01:15]}  Ke6 {[%clk 0:00:39]} 47. Rh1 {[%clk 0:01:15]}  Ke7 {[%clk 0:00:34]} 48. Rf1 {[%clk 0:01:16]}  Ne6 {[%clk 0:00:34]} 49. Rc1 {[%clk 0:01:16]} 1/2-1/2


[Site "https://www.chess.com"]

[Event "Titled Tuesday Blitz May 24 Late 2022"]
[White "Przybylski, Wojciech"]
[Black "Yuan, Qingyu"]
[WhiteFideId "1117599"]
[BlackFideId "8609772"]
[WhiteElo "2133"]
[BlackElo "2359"]
[Result "0-1"]
[Round "09"]
[TimeControl "180+1"]
[Date "2022.05.24"]
[WhiteClock "0:00:01"]
[BlackClock "0:00:13"]

1. e4 {[%clk 0:03:00]}  c6 {[%clk 0:03:00]} 2. d4 {[%clk 0:02:57]}  d5 {[%clk 0:03:01]} 3. e5 {[%clk 0:02:56]}  c5 {[%clk 0:03:01]} 4. Nf3 {[%clk 0:02:55]}  cxd4 {[%clk 0:03:01]} 5. Nxd4 {[%clk 0:02:55]}  Nc6 {[%clk 0:03:02]} 6. f4 {[%clk 0:02:51]}  Nxd4 {[%clk 0:02:20]} 7. Qxd4 {[%clk 0:02:50]}  e6 {[%clk 0:02:14]} 8. c4 {[%clk 0:02:36]}  Ne7 {[%clk 0:02:10]} 9. cxd5 {[%clk 0:02:35]}  Nxd5 {[%clk 0:02:00]} 10. Nc3 {[%clk 0:02:35]}  Bb4 {[%clk 0:01:47]} 11. Bb5+ {[%clk 0:02:23]}  Bd7 {[%clk 0:01:45]} 12. Bxd7+ {[%clk 0:02:22]}  Qxd7 {[%clk 0:01:46]} 13. O-O {[%clk 0:02:18]}  Rc8 {[%clk 0:01:39]} 14. Ne4 {[%clk 0:02:09]}  O-O {[%clk 0:01:33]} 15. Be3 {[%clk 0:02:03]}  Ba5 {[%clk 0:01:27]} 16. Bf2 {[%clk 0:01:29]}  Rc2 {[%clk 0:01:01]} 17. Qd3 {[%clk 0:01:19]}  Rxb2 {[%clk 0:00:56]} 18. Ng5 {[%clk 0:01:05]}  g6 {[%clk 0:00:44]} 19. Rad1 {[%clk 0:00:53]}  h6 {[%clk 0:00:29]} 20. Ne4 {[%clk 0:00:32]}  Qb5 {[%clk 0:00:29]} 21. Qh3 {[%clk 0:00:26]}  Qe2 {[%clk 0:00:22]} 22. Ng3 {[%clk 0:00:08]}  Nxf4 {[%clk 0:00:15]} 23. Qxh6 {[%clk 0:00:07]}  Qg4 {[%clk 0:00:14]} 24. Rd4 {[%clk 0:00:04]}  Ne2+ {[%clk 0:00:11]} 25. Nxe2 {[%clk 0:00:04]}  Qxe2 {[%clk 0:00:11]} 26. Rh4 {[%clk 0:00:03]}  Qxf2+ {[%clk 0:00:12]} 27. Rxf2 {[%clk 0:00:03]}  Rb1+ {[%clk 0:00:13]} 28. Rf1 {[%clk 0:00:01]}  Bb6+ {[%clk 0:00:13]} 0-1


[Site "https://www.chess.com"]

[Event "Titled Tuesday Blitz May 24 Late 2022"]
[White "Remolar Gallen, Jose"]
[Black "Romero Ruscalleda, Josep"]
[WhiteFideId "2215187"]
[BlackFideId "2231859"]
[WhiteElo "2205"]
[BlackElo "2302"]
[Result "0-1"]
[Round "09"]
[TimeControl "180+1"]
[Date "2022.05.25"]
[WhiteClock "0:00:04"]
[BlackClock "0:00:13"]

1. d4 {[%clk 0:01:56]}  g6 {[%clk 0:03:00]} 2. e4 {[%clk 0:01:56]}  Bg7 {[%clk 0:03:00]} 3. Nc3 {[%clk 0:01:57]}  d6 {[%clk 0:03:00]} 4. f4 {[%clk 0:01:57]}  a6 {[%clk 0:03:00]} 5. Nf3 {[%clk 0:01:57]}  b5 {[%clk 0:03:00]} 6. Bd3 {[%clk 0:01:57]}  Bb7 {[%clk 0:02:59]} 7. Qe2 {[%clk 0:01:53]}  Nh6 {[%clk 0:02:51]} 8. O-O {[%clk 0:01:45]}  O-O {[%clk 0:02:49]} 9. Be3 {[%clk 0:01:44]}  Nd7 {[%clk 0:02:47]} 10. Rad1 {[%clk 0:01:43]}  c5 {[%clk 0:02:47]} 11. e5 {[%clk 0:01:36]}  Bxf3 {[%clk 0:02:31]} 12. Qxf3 {[%clk 0:01:33]}  cxd4 {[%clk 0:02:30]} 13. Bxd4 {[%clk 0:01:33]}  dxe5 {[%clk 0:02:28]} 14. fxe5 {[%clk 0:01:25]}  Nxe5 {[%clk 0:02:26]} 15. Bxe5 {[%clk 0:01:17]}  Bxe5 {[%clk 0:02:25]} 16. Kh1 {[%clk 0:01:11]}  Qb8 {[%clk 0:02:15]} 17. Nd5 {[%clk 0:01:04]}  Ra7 {[%clk 0:02:08]} 18. Rde1 {[%clk 0:01:00]}  Qd6 {[%clk 0:01:25]} 19. c4 {[%clk 0:00:54]}  bxc4 {[%clk 0:01:21]} 20. Bxc4 {[%clk 0:00:55]}  Nf5 {[%clk 0:01:16]} 21. g4 {[%clk 0:00:39]}  Nd4 {[%clk 0:01:11]} 22. Qe3 {[%clk 0:00:39]}  Bg7 {[%clk 0:00:59]} 23. Rf4 {[%clk 0:00:28]}  Ne6 {[%clk 0:00:56]} 24. Rxf7 {[%clk 0:00:16]}  Rxf7 {[%clk 0:00:45]} 25. Qxa7 {[%clk 0:00:15]}  Bd4 {[%clk 0:00:34]} 26. Qa8+ {[%clk 0:00:06]}  Kg7 {[%clk 0:00:34]} 27. Qb7 {[%clk 0:00:04]}  Nc5 {[%clk 0:00:26]} 28. Qc8 {[%clk 0:00:03]}  e6 {[%clk 0:00:22]} 29. Ne3 {[%clk 0:00:02]}  Bxe3 {[%clk 0:00:18]} 30. Rxe3 {[%clk 0:00:03]}  Qd1+ {[%clk 0:00:17]} 31. Kg2 {[%clk 0:00:03]}  Qd2+ {[%clk 0:00:15]} 32. Re2 {[%clk 0:00:04]}  Qf4 {[%clk 0:00:14]} 33. Qxc5 {[%clk 0:00:04]}  Qf3+ {[%clk 0:00:13]} 34. Kg1 {[%clk 0:00:04]}  Qf1# {[%clk 0:00:13]} 0-1


[Site "https://www.chess.com"]

[Event "Titled Tuesday Blitz May 24 Late 2022"]
[White "Richter, Nils"]
[Black "Boder, Jan"]
[WhiteFideId "12990809"]
[BlackFideId "16243226"]
[WhiteElo "2243"]
[BlackElo "2064"]
[Result "1-0"]
[Round "09"]
[TimeControl "180+1"]
[Date "2022.05.25"]
[WhiteClock "0:02:18"]
[BlackClock "0:01:45"]

1. c4 {[%clk 0:03:00]}  e5 {[%clk 0:02:58]} 2. g3 {[%clk 0:03:01]}  Nf6 {[%clk 0:02:59]} 3. Bg2 {[%clk 0:03:01]}  d5 {[%clk 0:03:00]} 4. cxd5 {[%clk 0:03:02]}  Nxd5 {[%clk 0:03:00]} 5. Nc3 {[%clk 0:03:02]}  Nb6 {[%clk 0:03:01]} 6. Nf3 {[%clk 0:03:02]}  Nc6 {[%clk 0:03:02]} 7. O-O {[%clk 0:03:03]}  Be7 {[%clk 0:03:03]} 8. d3 {[%clk 0:03:03]}  g5 {[%clk 0:03:03]} 9. a3 {[%clk 0:02:56]}  g4 {[%clk 0:03:04]} 10. Nd2 {[%clk 0:02:56]}  h5 {[%clk 0:03:04]} 11. b4 {[%clk 0:02:56]}  h4 {[%clk 0:03:04]} 12. b5 {[%clk 0:02:51]}  Nd4 {[%clk 0:03:03]} 13. e3 {[%clk 0:02:51]}  Ne6 {[%clk 0:02:51]} 14. Nc4 {[%clk 0:02:35]}  Nxc4 {[%clk 0:02:35]} 15. dxc4 {[%clk 0:02:35]}  Qxd1 {[%clk 0:02:36]} 16. Rxd1 {[%clk 0:02:35]}  Ng5 {[%clk 0:02:37]} 17. Bb2 {[%clk 0:02:29]}  f6 {[%clk 0:01:48]} 18. Nd5 {[%clk 0:02:24]}  Kd8 {[%clk 0:01:47]} 19. Nxf6+ {[%clk 0:02:20]}  Bd7 {[%clk 0:01:45]} 20. Rxd7+ {[%clk 0:02:18]} 1-0


[Site "https://www.chess.com"]